bitfinex/quotes_ETHUSD_20251217
["timestamp","ask_amount","ask_price","bid_price","bid_amount"]
[1765995867251,3.72494809,2861.9,2861.5,0.03144434]
[1765995867679,9.29838618,2861.9,2861.5,0.03144434]
[1765995867852,2.0792,2861.8,2861.5,0.03144434]
[1765995868054,3.23974862,2861.8,2861.5,0.03144434]
[1765995868354,5.54684862,2861.8,2861.5,0.03144434]
[1765995868549,2.0792,2861.6,2861.1,0.03144434]
[1765995868875,2.0792,2861.1,2860.6,0.03144434]
[1765995869180,4.3863,2861.1,2860.8,0.03144434]
[1765995870248,4.82493,2861.1,2860.6,0.03144434]
[1765995870455,2.0792,2861.0,2860.8,0.03144434]
[1765995870752,2.0792,2861.0,2860.4,0.03344434]
[1765995870753,5.57506904,2860.6,2860.4,0.03344434]
[1765995871086,2.0792,2860.6,2860.4,0.03344434]
[1765995871272,4.3863,2860.7,2860.4,0.03344434]
[1765995871489,3.49558732,2860.8,2860.4,0.03344434]
[1765995871665,10.20811475,2860.8,2860.4,0.03344434]
[1765995871865,4.3863,2860.7,2860.4,0.03344434]
[1765995872067,2.0792,2860.7,2860.4,0.03344434]
[1765995872266,2.3071,2860.4,2860.2,0.03344434]
[1765995872467,2.3071,2860.7,2860.2,0.03344434]
[1765995872751,5.57478732,2860.8,2860.4,0.03144434]
[1765995872962,5.57478732,2860.8,2860.2,3.52970125]
[1765995872963,6.99117443,2860.8,2860.2,0.03344434]
[1765995873371,3.49558711,2860.8,2860.2,0.03344434]
[1765995873764,3.49558711,2860.8,2860.2,3.52959569]
[1765995873995,3.49558711,2860.8,2860.4,0.03144434]
[1765995874165,0.40892733,2860.7,2860.4,0.03144434]
[1765995875284,5.80189275,2861.4,2860.4,3.5274018]
[1765995875585,2.3071,2861.2,2860.4,3.5274018]
[1765995876387,4.3863,2861.2,2860.9,0.03144434]
[1765995876597,3.4951592,2861.1,2860.9,0.03144434]
[1765995877072,2.3071,2861.1,2860.9,0.03144434]
[1765995877278,2.0792,2861.0,2860.7,0.03144434]
[1765995877859,4.3863,2861.1,2860.7,0.03144434]
[1765995878055,3.49506513,2861.2,2860.9,0.03144434]
[1765995878282,2.0792,2861.4,2861.1,0.03144434]
[1765995878590,9.0689315,2861.4,2861.1,0.03144434]
[1765995878760,2.3071,2861.3,2860.9,0.03144434]
[1765995878958,4.3863,2861.2,2860.9,0.03144434]
[1765995879187,2.0792,2861.1,2860.9,0.03144434]
[1765995880187,2.0792,2861.1,2860.7,0.03144434]
[1765995880393,4.3863,2861.1,2860.7,0.03144434]
[1765995880572,2.0792,2861.0,2860.7,0.03144434]
[1765995881083,1.9391,2861.0,2860.9,0.03144434]
[1765995881478,1.68164962,2861.0,2860.4,0.03144434]
[1765995881792,4.1895,2860.8,2860.6,0.03144434]
[1765995882171,4.1895,2860.9,2860.4,0.03144434]
[1765995882476,1.9391,2860.8,2860.4,0.03144434]
[1765995882682,5.74602718,2860.8,2860.4,0.03144434]
[1765995882884,3.49562718,2860.8,2860.4,0.03144434]
[1765995883865,6.99125436,2860.8,2860.4,0.03144434]
[1765995884280,3.49562718,2860.8,2860.4,0.03144434]
[1765995884967,4.1895,2860.7,2860.4,0.03144434]
[1765995885187,4.1895,2860.6,2860.4,0.03144434]
[1765995885362,3.49540354,2860.9,2860.4,0.03144434]
[1765995885690,5.43450354,2860.9,2860.6,0.03144434]
[1765995886068,8.92992247,2860.9,2860.6,0.03144434]
[1765995886465,2.2504,2860.6,2860.4,0.03144434]
[1765995886699,0.22504,2860.6,2860.4,0.03144434]
[1765995886899,4.1895,2860.8,2860.4,0.03144434]
[1765995887893,3.49540354,2860.9,2860.6,0.03144434]
[1765995888098,7.68490354,2860.9,2860.6,0.03144434]
[1765995888397,0.558,2861.0,2860.6,0.03144434]
[1765995888599,4.05333992,2861.0,2860.6,0.03144434]
[1765995888809,1.9391,2860.5,2860.2,0.002]
[1765995889095,7.68537735,2860.6,2860.4,0.03144434]
[1765995889297,4.1895,2860.6,2860.2,0.03344434]
[1765995889501,4.1895,2860.8,2860.4,0.03144434]
[1765995890268,8.92973699,2861.0,2860.6,0.03144434]
[1765995890481,10.09418871,2861.0,2860.4,0.03144434]
[1765995890688,4.1895,2860.9,2860.6,0.03144434]
[1765995891004,7.68500703,2860.9,2860.6,0.03144434]
[1765995891199,1.16445172,2861.0,2860.6,0.03144434]
[1765995891499,3.49533931,2861.0,2860.6,0.03144434]
[1765995891798,1.9391,2860.9,2860.6,0.03144434]
[1765995892180,7.68483931,2861.0,2860.6,0.03144434]
[1765995892566,3.49533931,2861.0,2860.8,0.03144434]
[1765995893502,6.99067862,2861.0,2860.8,0.03144434]
[1765995894003,3.49533931,2861.0,2860.8,0.03144434]
[1765995894770,6.99067862,2861.0,2860.6,0.03144434]
[1765995894965,6.99067862,2861.0,2860.8,0.03144434]
[1765995895169,6.99067862,2861.0,2860.4,0.002]
[1765995895170,9.85458836,2861.0,2860.4,0.002]
[1765995895394,4.1895,2860.6,2860.4,0.03344434]
[1765995895675,1.9391,2860.8,2860.4,0.03344434]
[1765995895908,6.99067862,2861.0,2860.6,0.03144434]
[1765995896106,13.15094012,2861.0,2860.6,0.03144434]
[1765995896312,4.1895,2860.9,2860.6,0.03144434]
[1765995897376,3.95953943,2861.1,2860.7,0.03144434]
[1765995897578,8.14903943,2861.1,2860.7,0.03144434]
[1765995897778,5.89863943,2861.1,2860.9,0.03144434]
[1765995898089,9.39379866,2861.1,2860.9,0.03144434]
[1765995898856,0.001,2861.0,2860.7,0.03144434]
[1765995898994,11.17584652,2861.7,2860.7,0.03144434]
[1765995898995,1.9391,2861.5,2860.9,0.03144434]
[1765995899314,3.95917191,2861.5,2860.9,0.03144434]
[1765995899609,3.95917191,2861.5,2860.9,3.52681984]
[1765995899903,7.45396359,2861.5,2860.9,0.79262254]
[1765995900078,3.95917191,2861.5,2860.9,0.79262254]
[1765995900278,7.45396359,2861.5,2861.2,0.03144434]
[1765995900508,9.39306359,2861.5,2861.2,0.03144434]
[1765995900808,4.1895,2861.4,2860.7,0.03144434]
[1765995901013,4.1895,2861.4,2860.9,0.03144434]
[1765995901207,4.1895,2861.4,2860.7,0.03144434]
[1765995901410,4.1895,2861.3,2860.7,0.03144434]
[1765995901707,4.1895,2861.3,2860.4,0.03344434]
[1765995902006,4.1895,2861.3,2860.7,0.03144434]
[1765995902178,2.2504,2861.1,2860.7,0.03144434]
[1765995902383,4.1895,2861.0,2860.4,0.03344434]
[1765995902580,0.47475,2861.2,2860.7,4.434e-05]
[1765995902785,0.558,2861.4,2860.7,4.434e-05]
[1765995903178,4.1895,2861.3,2860.4,0.03344434]
[1765995903383,1.9391,2860.7,2860.2,0.002]
[1765995903578,2.2504,2860.4,2859.6,0.58944434]
[1765995903817,13.97965956,2861.3,2860.1,0.03144434]
[1765995904009,2.42034619,2861.2,2860.1,0.10024434]
[1765995904313,1.9391,2860.8,2860.1,0.10024434]
[1765995904486,1.9391,2860.7,2860.3,0.03144434]
[1765995904816,2.2504,2860.6,2860.3,0.03144434]
[1765995904978,3.05025723,2861.1,2860.5,0.03144434]
[1765995905178,2.2504,2860.8,2860.3,0.03144434]
[1765995905379,3.49601454,2860.4,2860.3,0.03144434]
[1765995905679,3.49601454,2860.4,2860.1,0.03144434]
[1765995906009,3.49601454,2860.4,2860.3,0.03144434]
[1765995906413,2.2504,2860.2,2859.8,0.03344434]
[1765995906617,4.1895,2860.1,2859.8,0.03344434]
[1765995906803,4.1895,2860.3,2860.0,0.03144434]
[1765995907114,5.30765291,2860.3,2860.0,0.03144434]
[1765995907279,3.49542223,2860.9,2860.1,0.03144434]
[1765995907484,2.40348023,2860.6,2860.2,0.03144434]
[1765995907783,4.1895,2860.6,2860.2,0.03144434]
[1765995908179,1.9391,2860.7,2860.5,0.03144434]
[1765995908409,0.46438023,2860.8,2860.5,0.03144434]
[1765995908610,4.1895,2860.6,2860.2,0.03144434]
[1765995908820,0.7455206,2860.7,2860.1,0.03144434]
[1765995909015,3.49540354,2860.9,2860.3,0.03144434]
[1765995909198,0.46438023,2860.9,2860.5,0.03144434]
[1765995909392,2.0061,2861.1,2860.7,0.03144434]
[1765995909609,3.49534383,2861.0,2860.7,0.03144434]
[1765995909804,2.0061,2861.1,2860.7,0.03144434]
[1765995909805,0.001,2861.2,2860.9,0.03144434]
[1765995910311,3.49606059,2861.2,2860.9,0.03144434]
[1765995911017,3.49606059,2861.2,2861.1,0.03144434]
[1765995911216,3.49603704,2861.2,2860.7,0.03144434]
[1765995911518,3.49528137,2861.0,2860.9,0.03144434]
[1765995912115,6.99056274,2861.0,2860.7,0.03144434]
[1765995912317,6.99056274,2861.0,2860.5,0.03144434]
[1765995912318,1.8966,2860.6,2860.5,0.03144434]
[1765995912494,4.2302,2860.8,2860.5,0.03144434]
[1765995912687,3.49528137,2861.0,2860.7,0.03144434]
[1765995913091,6.99056274,2861.0,2860.7,0.03144434]
[1765995913317,3.49528137,2861.0,2860.7,0.03144434]
[1765995913518,3.4951592,2861.1,2860.7,0.03144434]
[1765995913692,7.81875432,2861.1,2860.7,0.03144434]
[1765995913894,9.71535432,2861.1,2860.7,0.03144434]
[1765995914290,12.04895432,2861.1,2860.7,0.03144434]
[1765995914504,4.32359512,2861.1,2860.7,0.03144434]
[1765995914823,3.4951592,2861.1,2860.9,0.03144434]
[1765995915124,3.95894525,2861.6,2860.9,0.03144434]
[1765995915125,4.2302,2861.8,2860.9,0.09924434]
[1765995915418,2.36098023,2861.6,2861.5,0.03144434]
[1765995915622,5.85552873,2861.6,2861.5,0.03144434]
[1765995915816,7.02388452,2861.6,2861.5,0.03144434]
[1765995916519,3.49393801,2862.1,2861.5,0.03144434]
[1765995916823,6.98796581,2862.1,2861.5,0.03144434]
[1765995917022,3.49393801,2862.1,2861.5,0.03144434]
[1765995917321,6.98796581,2862.1,2861.5,0.03144434]
[1765995917503,8.10998239,2862.1,2861.5,0.03144434]
[1765995917713,3.494868,2862.2,2861.8,0.03144434]
[1765995917914,4.2302,2861.9,2861.5,0.03144434]
[1765995918112,1.8966,2861.8,2861.5,0.03144434]
[1765995918528,2.3336,2861.9,2861.3,0.03144434]
[1765995918735,4.75545802,2861.9,2861.3,0.03144434]
[1765995919825,9.32220856,2861.8,2861.3,0.03144434]
[1765995920009,1.8966,2861.6,2861.3,0.03144434]
[1765995920507,6.98860856,2861.8,2861.1,0.03144434]
[1765995920508,4.2302,2861.4,2861.1,0.03144434]
[1765995920713,1.8966,2861.4,2861.0,0.03144434]
[1765995920916,2.3336,2861.3,2860.7,0.58944434]
[1765995921116,0.18966,2861.4,2861.1,0.03144434]
[1765995921727,2.52326,2861.4,2861.1,0.03144434]
[1765995921933,7.72520685,2861.3,2861.1,0.03144434]
[1765995922132,1.8966,2861.1,2860.7,0.03144434]
[1765995922522,4.2302,2861.1,2860.7,0.03144434]
[1765995922731,0.42302,2861.0,2860.7,0.03144434]
[1765995922920,0.001,2862.1,2861.0,0.405504]
[1765995923123,0.001,2862.1,2861.8,0.03144434]
[1765995923319,3.49494633,2862.1,2861.6,0.03144434]
[1765995923518,11.21909266,2862.1,2861.6,0.03144434]
[1765995923725,12.34120193,2862.1,2861.6,0.03144434]
[1765995924042,4.2302,2862.0,2861.6,0.03144434]
[1765995925239,12.34120193,2862.1,2861.6,0.03144434]
[1765995925615,1.8966,2862.0,2861.6,0.03144434]
[1765995925825,6.9506556,2862.1,2861.6,0.03144434]
[1765995926027,4.6170556,2862.1,2861.6,0.03144434]
[1765995926223,0.001,2862.1,2861.8,0.03144434]
[1765995926632,0.001,2862.1,2862.0,0.03144434]
[1765995927045,0.001,2862.1,2861.8,0.03144434]
[1765995927238,5.39153801,2862.1,2861.8,0.03144434]
[1765995927438,3.49493801,2862.1,2861.8,0.03144434]
[1765995927628,0.001,2862.1,2861.8,0.03144434]
[1765995927946,0.001,2862.1,2862.0,0.03144434]
[1765995928886,0.001,2862.1,2861.8,0.03144434]
[1765995929074,0.001,2862.1,2861.7,0.03144434]
[1765995929075,4.2302,2862.0,2861.7,0.03144434]
[1765995929425,0.001,2862.1,2861.7,0.03144434]
[1765995929621,0.001,2862.1,2861.9,0.03144434]
[1765995930067,7.72438218,2861.9,2861.5,0.03144434]
[1765995930425,5.39078218,2861.9,2861.5,0.03144434]
[1765995930623,3.49411354,2862.0,2861.7,0.03144434]
[1765995930848,4.61614061,2862.0,2861.7,0.03144434]
[1765995931253,8.11025415,2862.0,2861.7,0.03144434]
[1765995931436,10.00685415,2862.0,2861.7,0.03144434]
[1765995931631,8.84634061,2862.0,2861.7,0.03144434]
[1765995932033,0.001,2862.1,2861.7,0.03144434]
[1765995932440,5.39155387,2862.1,2861.7,0.03144434]
[1765995932838,4.2302,2862.0,2861.3,0.03144434]
[1765995933061,0.557,2862.0,2861.3,0.03144434]
[1765995933361,4.2302,2861.9,2861.3,0.03144434]
[1765995933540,4.2302,2861.7,2861.3,0.03144434]
[1765995934136,3.49447454,2861.7,2861.3,0.03144434]
[1765995934341,1.8966,2861.6,2861.3,0.03144434]
[1765995934646,11.21914908,2861.7,2861.3,0.03144434]
[1765995934962,4.2302,2861.6,2861.3,0.03144434]
[1765995936166,8.20329053,2861.8,2861.3,0.03144434]
[1765995936869,8.20329053,2861.8,2861.5,0.03144434]
[1765995936870,2.37532,2861.8,2861.5,0.03144434]
[1765995937078,3.49424816,2861.9,2861.5,0.03144434]
[1765995937573,4.05198489,2862.1,2861.5,0.03144434]
[1765995937574,3.49412343,2862.0,2861.5,0.03144434]
[1765995937762,11.21844686,2862.0,2861.5,0.03144434]
[1765995938776,4.2302,2861.9,2861.5,0.03144434]
[1765995938941,2.3336,2861.7,2861.3,0.03144434]
[1765995939260,1.8966,2861.9,2861.5,0.03144434]
[1765995939467,3.49412343,2862.0,2861.5,0.03144434]
[1765995939663,0.001,2862.1,2861.7,0.03144434]
[1765995939962,0.001,2862.1,2861.9,0.03144434]
[1765995939963,3.49493885,2862.1,2861.9,0.03144434]
[1765995940551,8.8854777,2862.1,2861.7,0.03144434]
[1765995940760,11.0904777,2862.1,2861.7,0.03144434]
[1765995940962,7.59653885,2862.1,2861.7,0.03144434]
[1765995941160,7.59653885,2862.1,2859.8,3.49872885]
[1765995941161,9.0211157,2861.8,2859.8,3.49872885]
[1765995941482,2.205,2861.4,2860.5,3.52722219]
[1765995941764,4.1233,2861.3,2860.6,3.4957396]
[1765995941969,4.1233,2861.1,2860.2,3.49621902]
[1765995942181,4.1233,2861.1,2860.3,3.49610376]
[1765995942182,1.9183,2861.0,2860.3,3.49610376]
[1765995942345,1.9183,2861.0,2860.2,1.25726805]
[1765995942668,1.9183,2861.0,2860.3,0.03144434]
[1765995942669,4.1233,2860.6,2860.3,0.03144434]
[1765995942871,1.9183,2860.3,2859.8,0.002]
[1765995943169,1.9183,2860.2,2859.8,0.002]
[1765995943576,2.205,2860.3,2859.8,0.002]
[1765995943577,4.1233,2860.1,2859.8,0.002]
[1765995943736,1.9183,2860.1,2859.8,0.002]
[1765995943938,2.205,2860.4,2859.8,0.002]
[1765995944138,2.67313,2860.4,2859.8,0.002]
[1765995944450,5.41443676,2860.3,2859.8,0.002]
[1765995944653,7.61943676,2860.3,2859.8,0.002]
[1765995945575,6.99227352,2860.3,2859.8,0.002]
[1765995945753,2.205,2860.2,2859.8,0.002]
[1765995946073,1.9183,2860.1,2859.8,0.002]
[1765995946239,2.205,2860.2,2859.8,0.002]
[1765995946439,3.49638124,2860.1,2859.8,0.002]
[1765995946664,5.41468124,2860.1,2859.8,0.002]
[1765995947052,0.46438023,2860.4,2859.9,0.03144434]
[1765995947250,0.46438023,2860.4,2859.9,0.06284434]
[1765995948363,4.05397468,2860.5,2859.9,0.03144434]
[1765995948563,2.205,2860.4,2859.9,0.03144434]
[1765995948742,4.1233,2860.4,2859.9,0.03144434]
[1765995949166,7.85611485,2860.5,2859.9,0.03144434]
[1765995949564,3.49597468,2860.5,2859.9,3.52804457]
[1765995949769,3.49597468,2860.5,2859.9,3.55944457]
[1765995950277,1.9183,2861.3,2860.4,0.0314]
[1765995950482,1.9183,2861.2,2860.5,0.03144434]
[1765995950676,6.9903184,2861.1,2860.5,0.03144434]
[1765995951451,8.9086184,2861.1,2860.5,0.03144434]
[1765995951655,11.1136184,2861.1,2860.5,0.03144434]
[1765995952360,1.9183,2860.8,2860.3,0.03144434]
[1765995952556,10.4854776,2861.1,2860.1,0.03144434]
[1765995952557,5.41415232,2860.6,2860.1,0.03144434]
[1765995952880,5.41415232,2860.6,2860.1,3.52781671]
[1765995953084,3.49570854,2860.7,2860.1,3.52781671]
[1765995953377,5.70057752,2860.8,2860.3,0.03144434]
[1765995953579,2.4763,2860.9,2860.3,0.03144434]
[1765995953580,4.05346281,2860.9,2860.3,0.03144434]
[1765995953781,3.49531333,2861.0,2860.5,0.03144434]
[1765995953947,3.95958513,2861.1,2860.7,0.03144434]
[1765995955487,2.763,2861.3,2860.7,0.03144434]
[1765995955488,4.1233,2861.7,2860.9,0.03144434]
[1765995955669,1.9183,2861.5,2860.9,0.03144434]
[1765995955865,4.1233,2861.5,2860.9,0.03144434]
[1765995956071,0.558,2861.6,2860.9,0.03144434]
[1765995956264,2.66938023,2861.5,2860.9,0.03144434]
[1765995956470,4.1233,2861.3,2860.9,0.03144434]
[1765995956873,7.61833704,2861.2,2860.9,0.03144434]
[1765995957073,3.49503704,2861.2,2860.9,0.03144434]
[1765995957384,1.37106594,2861.5,2860.9,0.03144434]
[1765995957385,3.49496615,2861.3,2860.9,0.03144434]
[1765995957589,11.1132323,2861.3,2860.9,0.03144434]
[1765995957889,3.49496615,2861.3,2860.9,0.03144434]
[1765995958091,3.49471525,2861.5,2860.9,3.52677106]
[1765995958394,3.49471525,2861.5,2860.9,3.55817106]
[1765995958591,6.9894305,2861.5,2860.9,0.06284434]
[1765995958762,4.1233,2861.4,2860.9,0.03144434]
[1765995958963,3.49491489,2861.3,2860.9,0.03144434]
[1765995959159,5.41321489,2861.3,2860.9,0.03144434]
[1765995959379,5.69991489,2861.3,2860.9,0.03144434]
[1765995959584,7.61821489,2861.3,2860.9,0.03144434]
[1765995959781,8.22248632,2861.3,2860.7,0.03144434]
[1765995959974,4.1233,2861.2,2860.7,0.03144434]
[1765995960474,2.205,2861.1,2860.5,0.03344434]
[1765995960664,1.9183,2860.8,2860.5,0.03344434]
[1765995960863,0.558,2861.2,2860.5,0.002]
[1765995961066,6.99056274,2861.0,2860.2,0.03144434]
[1765995961260,19.50695981,2861.0,2859.8,0.59144434]
[1765995961461,4.1233,2860.9,2859.8,4.08818112]
[1765995961697,0.558,2860.8,2859.8,4.08818112]
[1765995962099,2.205,2860.7,2860.0,3.49642787]
[1765995962396,2.205,2860.7,2860.1,0.03144434]
[1765995962566,2.1946,2860.6,2860.1,3.52774906]
[1765995962767,1.9183,2860.6,2860.1,0.03144434]
[1765995963278,5.41417612,2860.6,2860.1,0.03144434]
[1765995963476,1.9183,2860.5,2860.1,0.03144434]
[1765995963679,4.1233,2860.5,2860.1,0.03144434]
[1765995963874,1.9183,2860.5,2860.1,0.03144434]
[1765995964079,3.49587612,2860.6,2860.1,0.03144434]
[1765995964391,7.74670532,2860.6,2859.8,0.59144434]
[1765995964603,2.205,2860.5,2860.0,0.03344434]
[1765995964788,0.75495308,2860.6,2860.2,0.03144434]
[1765995964966,4.1233,2860.6,2860.2,0.03144434]
[1765995965166,1.9183,2860.5,2860.2,0.03144434]
[1765995965496,1.9183,2860.5,2860.0,0.03344434]
[1765995965497,1.9183,2860.3,2860.0,0.03344434]
[1765995965702,1.9183,2860.2,2860.0,0.002]
[1765995965864,2.205,2860.2,2860.0,0.002]
[1765995966066,1.9183,2860.1,2860.0,0.002]
[1765995966263,1.9183,2860.1,2859.8,0.03344434]
[1765995967004,4.1233,2860.1,2859.8,0.002]
[1765995967368,7.61973034,2860.1,2859.8,0.002]
[1765995967879,3.49643034,2860.1,2859.8,0.002]
[1765995968905,5.41473034,2860.1,2859.8,0.002]
[1765995969194,5.41473034,2860.1,2859.3,0.03344434]
[1765995969195,11.43619377,2860.1,2859.3,0.03344434]
[1765995969371,6.9932515,2859.9,2859.3,0.03344434]
[1765995969785,4.3644,2859.8,2859.3,0.03344434]
[1765995970010,6.9932515,2859.9,2859.3,0.03344434]
[1765995970380,11.3576515,2859.9,2859.3,0.03344434]
[1765995970708,12.9377614,2859.9,2859.3,0.03344434]
[1765995971484,3.49601454,2860.4,2859.5,0.09824434]
[1765995971829,3.49601454,2860.4,2859.9,0.09824434]
[1765995971830,6.99202908,2860.4,2859.9,0.09824434]
[1765995972006,6.99202908,2860.4,2859.9,0.03144434]
[1765995972716,3.49601454,2860.4,2860.1,0.03144434]
[1765995973211,6.99202908,2860.4,2860.1,0.03144434]
[1765995973511,6.99202908,2860.4,2859.8,0.03144434]
[1765995973512,2.1375,2860.4,2859.8,0.03144434]
[1765995973713,4.1293,2860.4,2859.8,0.03144434]
[1765995974218,0.46438023,2860.5,2860.0,0.03144434]
[1765995974385,2.45618023,2860.5,2860.0,0.03144434]
[1765995974719,2.60188023,2860.5,2860.0,0.03144434]
[1765995974925,0.46438023,2860.5,2860.0,0.03144434]
[1765995975217,1.9918,2860.4,2860.0,0.03144434]
[1765995975405,6.99202908,2860.4,2860.0,0.09824434]
[1765995975609,6.99202908,2860.4,2860.0,0.03144434]
[1765995976316,11.12132908,2860.4,2859.8,0.03144434]
[1765995978516,1.9918,2860.2,2859.6,0.03144434]
[1765995978722,4.1293,2860.2,2859.6,0.03144434]
[1765995979224,0.46438023,2860.3,2859.6,0.03144434]
[1765995979426,4.1293,2860.2,2859.6,0.03144434]
[1765995979624,0.46438023,2860.3,2859.6,0.03144434]
[1765995979938,2.1375,2859.7,2859.3,0.002]
[1765995980248,2.1375,2859.7,2858.7,0.002]
[1765995980249,1.9918,2859.1,2858.7,0.002]
[1765995980439,4.1293,2859.1,2858.8,0.03144434]
[1765995980622,1.9918,2859.4,2859.0,0.03144434]
[1765995980943,0.95440298,2859.4,2859.0,0.03144434]
[1765995981166,0.95440298,2859.4,2858.7,0.002]
[1765995981167,1.9918,2859.3,2858.7,0.002]
[1765995981317,1.41878321,2859.4,2858.6,0.03344434]
[1765995981318,4.1293,2858.9,2858.6,0.03344434]
[1765995981517,0.558,2859.2,2858.6,0.03344434]
[1765995981518,4.6873,2859.2,2858.6,0.03344434]
[1765995981954,2.1375,2859.0,2858.6,0.03344434]
[1765995982130,3.49797117,2858.8,2858.6,0.03344434]
[1765995982452,4.1293,2858.7,2858.2,0.002]
[1765995983218,2.1375,2858.7,2858.2,0.002]
[1765995983413,4.1293,2858.6,2858.2,0.002]
[1765995983650,9.89616946,2858.8,2858.2,0.002]
[1765995983813,1.78341017,2859.5,2858.5,0.03144434]
[1765995983814,0.46438023,2859.0,2858.5,0.03144434]
[1765995984142,3.49784882,2858.9,2858.5,0.03144434]
[1765995984349,6.99569764,2858.9,2858.5,0.03144434]
[1765995984552,11.12499764,2858.9,2858.5,0.03144434]
[1765995984728,10.49354646,2858.9,2858.2,0.002]
[1765995985045,1.44557207,2858.8,2858.2,0.002]
[1765995985249,3.49784882,2858.9,2858.5,0.03144434]
[1765995985449,0.46438023,2859.0,2858.5,0.03144434]
[1765995985450,4.05578593,2859.0,2858.7,0.03144434]
[1765995985650,3.49766945,2859.1,2858.7,0.03144434]
[1765995986152,3.49766945,2859.1,2858.9,0.03144434]
[1765995986352,8.9871389,2859.1,2858.7,0.03144434]
[1765995987618,2.1375,2858.7,2858.5,0.002]
[1765995987823,1.9918,2858.6,2858.3,0.03144434]
[1765995988257,4.1293,2858.6,2858.3,0.03144434]
[1765995988462,3.49833828,2858.5,2858.3,0.03144434]
[1765995988852,3.49827855,2858.6,2858.3,0.03144434]
[1765995989172,6.99594234,2858.8,2858.3,0.03144434]
[1765995991263,4.1293,2858.7,2858.3,0.03144434]
[1765995991465,2.1375,2858.6,2858.2,0.002]
[1765995991622,4.1293,2858.6,2858.2,0.002]
[1765995992239,3.49665838,2859.9,2858.3,4.08802741]
[1765995992560,11.12230698,2860.0,2858.5,0.405504]
[1765995992801,0.46438023,2859.9,2858.5,0.405504]
[1765995993376,6.99349604,2859.8,2858.7,0.405504]
[1765995993576,6.99349604,2859.8,2858.8,0.558]
[1765995994287,3.49674802,2859.8,2858.8,0.558]
[1765995994495,3.49674802,2859.8,2859.5,0.03144434]
[1765995994815,4.09204085,2859.8,2859.5,0.03144434]
[1765995994961,7.58878887,2859.8,2859.3,0.03144434]
[1765995995167,9.58058887,2859.8,2859.5,0.03144434]
[1765995996209,11.71808887,2859.8,2859.5,0.03144434]
[1765995997785,1.9918,2859.6,2859.3,0.03144434]
[1765995998707,9.72628887,2859.8,2859.3,0.03144434]
[1765995998901,1.9918,2859.7,2859.3,0.03144434]
[1765995999106,11.71808887,2859.8,2859.5,0.03144434]
[1765995999503,4.09204085,2859.8,2859.5,0.03144434]
[1765995999703,3.49674802,2859.8,2859.7,0.03144434]
[1765996000210,1.9918,2859.7,2859.5,0.03144434]
[1765996000380,3.49674802,2859.8,2859.3,0.03144434]
[1765996000381,2.1375,2859.6,2859.3,0.03144434]
[1765996000582,1.9918,2859.5,2859.3,0.03144434]
[1765996001095,9.00829604,2859.8,2859.3,0.03144434]
[1765996001304,10.23951367,2859.8,2859.3,0.03144434]
[1765996001701,12.52001367,2859.8,2859.5,0.03144434]
[1765996002383,12.52001367,2859.8,2859.3,0.03144434]
[1765996002983,0.001,2859.7,2859.5,0.03144434]
[1765996003406,0.001,2859.7,2859.3,0.03144434]
[1765996003707,8.22471367,2859.8,2859.6,0.03144434]
[1765996003889,8.22471367,2859.8,2859.3,0.03144434]
[1765996004074,6.93169604,2859.8,2859.6,0.03144434]
[1765996004277,0.001,2859.9,2859.7,0.03144434]
[1765996004472,3.49764081,2859.9,2859.7,0.03144434]
[1765996004677,4.2953,2859.7,2859.3,0.03144434]
[1765996004909,2.2805,2859.6,2859.4,0.03144434]
[1765996005093,10.49092243,2859.9,2859.1,0.03144434]
[1765996005407,2.0148,2859.6,2859.3,0.03144434]
[1765996005771,10.49134464,2859.5,2858.9,0.03144434]
[1765996005983,4.2953,2859.4,2858.9,0.03144434]
[1765996006188,2.2805,2859.4,2858.9,0.03144434]
[1765996006409,2.0148,2859.3,2858.9,0.03144434]
[1765996006609,4.2953,2859.3,2858.9,0.03144434]
[1765996007312,6.99422976,2859.5,2858.9,0.03144434]
[1765996007313,11.28952976,2859.5,2859.1,0.03144434]
[1765996007487,6.99422976,2859.5,2859.1,0.03144434]
[1765996007691,9.00902976,2859.5,2859.1,0.03144434]
[1765996007994,10.31543005,2859.5,2858.9,0.03144434]
[1765996008179,4.2953,2859.4,2859.1,0.03144434]
[1765996008376,2.2805,2859.3,2858.9,1e-08]
[1765996008592,4.2953,2859.2,2858.9,1e-08]
[1765996009511,2.0148,2859.0,2858.5,0.03344434]
[1765996009710,2.0148,2859.0,2858.5,1e-08]
[1765996009711,4.2953,2858.8,2858.5,1e-08]
[1765996009917,9.27742134,2858.4,2858.2,0.03344434]
[1765996010209,9.27742134,2858.4,2858.0,0.03344434]
[1765996010210,4.2953,2858.3,2858.0,1e-08]
[1765996010378,5.22587455,2858.8,2858.2,0.03144434]
[1765996010379,0.46438023,2858.7,2858.2,0.03144434]
[1765996010574,2.5728,2858.6,2858.2,0.03144434]
[1765996011102,2.5728,2858.6,2858.4,0.03144434]
[1765996011103,0.558,2858.6,2858.4,0.03144434]
[1765996011424,4.2953,2858.4,2858.2,0.03144434]
[1765996011586,4.2953,2858.5,2858.2,0.03144434]
[1765996011777,2.0148,2858.4,2858.0,1e-08]
[1765996011977,7.79412789,2858.1,2858.0,1e-08]
[1765996012212,2.2805,2858.0,2857.6,0.00200001]
[1765996012510,2.0148,2858.0,2857.8,0.03144434]
[1765996012715,9.83615578,2858.1,2857.8,0.03144434]
[1765996013006,2.2805,2858.0,2857.8,0.03144434]
[1765996013184,2.0148,2857.9,2857.6,0.00200001]
[1765996013379,7.55565578,2858.1,2857.8,0.03144434]
[1765996013578,9.57045578,2858.1,2857.8,0.03144434]
[1765996013807,2.0148,2858.0,2857.8,0.03144434]
[1765996014109,3.49907274,2857.9,2857.8,0.03144434]
[1765996014310,0.558,2858.1,2857.8,0.03144434]
[1765996014510,2.0148,2858.0,2857.8,0.03144434]
[1765996014708,2.0148,2857.9,2857.8,0.03144434]
[1765996015308,2.0148,2857.9,2857.6,0.00200001]
[1765996016010,2.2805,2857.6,2857.3,0.03344434]
[1765996016315,2.2805,2857.6,2857.1,0.03144434]
[1765996016316,4.2953,2857.3,2857.1,0.03144434]
[1765996016483,3.49968502,2857.4,2857.0,0.002]
[1765996016685,3.49968502,2857.4,2857.1,0.03144434]
[1765996016884,7.79498502,2857.4,2857.1,0.03144434]
[1765996017216,11.29467004,2857.4,2857.1,0.03144434]
[1765996017708,7.79498502,2857.4,2857.1,0.03144434]
[1765996017918,4.2953,2857.3,2857.1,0.03144434]
[1765996018284,3.49993,2857.2,2857.1,0.03144434]
[1765996018480,3.49993,2857.2,2856.8,0.03344434]